bitfinex/quotes_SOLUSD_20240624
["timestamp","ask_amount","ask_price","bid_price","bid_amount"]
[1719244323704,38.46420315,126.58,126.46,0.34]
[1719244324712,38.46420315,126.58,126.45,3.7769]
[1719244325011,62.22420315,126.58,126.45,3.7769]
[1719244325304,0.34,126.57,126.45,3.7769]
[1719244325903,38.46420315,126.58,126.45,3.7769]
[1719244326903,38.46420315,126.58,126.47,3.7769]
[1719244327079,23.76,126.63,126.48,0.34]
[1719244327490,16.09143848,126.61,126.48,0.34]
[1719244327694,16.09143848,126.61,126.49,3.7769]
[1719244327877,23.76,126.65,126.5,0.17]
[1719244328086,8.18145516,126.61,126.5,0.17]
[1719244328487,51.4408,126.64,126.5,0.17]
[1719244328709,8.18127371,126.63,126.5,0.34]
[1719244329504,8.18127371,126.63,126.51,3.7769]
[1719244329706,8.18127371,126.63,126.53,3.7769]
[1719244329913,6.96786479,126.65,126.53,3.7769]
[1719244330078,31.615804,126.66,126.53,3.7769]
[1719244330079,8.18127238,126.64,126.53,3.7769]
[1719244330484,8.18127238,126.64,126.54,0.17]
[1719244331210,8.18127238,126.64,126.53,3.7769]
[1719244331703,8.18127238,126.64,126.52,0.17]
[1719244331704,7.03430164,126.66,126.55,3.7769]
[1719244332009,8.18004066,126.66,126.55,3.7769]
[1719244332189,11.95694066,126.66,126.55,3.7769]
[1719244332392,11.95694066,126.66,126.56,0.17]
[1719244332393,8.18004066,126.66,126.56,0.17]
[1719244333088,20.0,126.69,126.56,0.34]
[1719244333408,28.17925874,126.69,126.57,3.7769]
[1719244333911,10.45711069,126.69,126.57,3.7769]
[1719244334211,6.58,126.68,126.57,3.7769]
[1719244334589,23.76,126.67,126.57,3.7769]
[1719244335010,0.34,126.66,126.57,3.7769]
[1719244336112,0.17,126.66,126.57,3.7769]
[1719244336315,0.34,126.67,126.57,3.7769]
[1719244336784,0.17,126.67,126.57,3.7769]
[1719244336988,6.83372095,126.71,126.57,3.7769]
[1719244337216,31.6522,126.71,126.57,3.7769]
[1719244337424,23.76,126.71,126.57,3.7769]
[1719244337586,43.76,126.7,126.57,3.7769]
[1719244339617,0.17,126.69,126.57,3.7769]
[1719244339919,31.58,126.66,126.57,3.7769]
[1719244340216,55.34,126.66,126.57,3.7769]
[1719244340420,0.17,126.65,126.57,3.7769]
[1719244341287,31.58,126.66,126.57,3.7769]
[1719244342009,55.34,126.66,126.57,3.7769]
[1719244342211,0.34,126.65,126.57,3.7769]
[1719244342798,31.658,126.62,126.46,3.7769]
[1719244343012,15.466,126.63,126.46,3.7769]
[1719244343013,55.34,126.55,126.46,3.7769]
[1719244343231,0.17,126.54,126.46,3.7769]
[1719244343442,0.34,126.54,126.46,3.7769]
[1719244344509,0.17,126.54,126.46,3.7769]
[1719244344821,0.34,126.54,126.46,3.7769]
[1719244345223,0.17,126.54,126.46,3.7769]
[1719244345410,39.77544412,126.55,126.46,3.7769]
[1719244345926,0.17,126.54,126.46,3.7769]
[1719244346127,0.34,126.54,126.46,3.7769]
[1719244346310,0.34,126.54,126.42,3.7769]
[1719244346510,24.1,126.54,126.42,3.7769]
[1719244346718,32.0027,126.54,126.42,3.7769]
[1719244346925,31.58,126.47,126.42,3.7769]
[1719244347416,0.17,126.48,126.34,257.1]
[1719244347613,0.34,126.48,126.3,3.7769]
[1719244348320,2.27609647,126.53,126.32,3.7769]
[1719244348498,23.76,126.5,126.33,3.7769]
[1719244348702,0.34,126.49,126.33,3.7769]
[1719244348922,31.58,126.51,126.35,3.7769]
[1719244349128,31.58,126.51,126.37,3.7769]
[1719244349419,31.58,126.51,126.38,0.34]
[1719244350002,3.7769,126.51,126.37,1.6169]
[1719244350204,3.7769,126.51,126.38,0.34]
[1719244350920,46.55105619,126.55,126.37,7.913]
[1719244351108,46.55105619,126.55,126.37,19.7817]
[1719244351308,14.97105619,126.55,126.39,19.81925836]
[1719244351540,6.77561207,126.55,126.39,27.73075836]
[1719244351711,23.76,126.59,126.39,27.73075836]
[1719244351911,23.76,126.57,126.39,19.81925836]
[1719244352222,8.19029471,126.58,126.4,8.0809]
[1719244352529,8.19029471,126.58,126.41,0.17]
[1719244352732,8.19029471,126.58,126.4,0.34]
[1719244353100,8.19029471,126.58,126.41,1.6169]
[1719244353333,23.76,126.57,126.42,0.34]
[1719244353708,23.76,126.57,126.41,1.6169]
[1719244353709,31.58,126.54,126.41,1.6169]
[1719244354842,0.17,126.53,126.41,1.6169]
[1719244355004,8.19029471,126.58,126.41,1.6169]
[1719244355205,8.19029471,126.58,126.42,1.7869]
[1719244355405,8.19029471,126.58,126.43,0.17]
[1719244355620,8.19029471,126.58,126.44,1.6169]
[1719244355938,28.13799471,126.58,126.45,0.34]
[1719244356116,19.9477,126.58,126.45,0.34]
[1719244356303,30.79713875,126.59,126.45,0.34]
[1719244356509,31.6709,126.59,126.45,0.34]
[1719244356821,0.34,126.58,126.45,0.34]
[1719244357026,0.17,126.58,126.45,0.34]
[1719244357337,7.9109,126.59,126.46,1.6169]
[1719244357511,7.9109,126.59,126.47,0.34]
[1719244358031,31.6709,126.59,126.46,1.6169]
[1719244358241,23.76,126.57,126.46,1.6169]
[1719244358920,0.34,126.56,126.46,1.6169]
[1719244359119,31.58,126.55,126.46,1.6169]
[1719244359330,0.17,126.54,126.46,1.6169]
[1719244359543,0.34,126.54,126.46,1.6169]
[1719244361335,31.58,126.55,126.46,1.6169]
[1719244361538,39.4909,126.59,126.46,1.6169]
[1719244361715,63.2509,126.59,126.46,1.6169]
[1719244361915,39.4909,126.59,126.46,1.6169]
[1719244362223,39.4909,126.59,126.47,0.17]
[1719244362735,39.4909,126.59,126.47,0.34]
[1719244363833,0.17,126.58,126.47,0.34]
[1719244365034,31.94385241,126.61,126.47,0.34]
[1719244365035,8.18385241,126.61,126.48,1.6169]
[1719244365229,23.76,126.64,126.5,1.6169]
[1719244365428,23.76,126.64,126.51,0.17]
[1719244366156,8.17908548,126.65,126.51,0.17]
[1719244366334,8.17908548,126.65,126.51,0.34]
[1719244366528,3.161498,126.63,126.51,0.34]
[1719244366955,3.161498,126.63,126.52,1.6169]
[1719244367143,3.161498,126.63,126.53,0.34]
[1719244367652,3.161498,126.63,126.53,0.17]
[1719244367948,31.58,126.62,126.52,1.6169]
[1719244368153,0.34,126.61,126.52,1.6169]
[1719244370262,31.58,126.62,126.52,1.6169]
[1719244371630,0.34,126.61,126.52,1.6169]
[1719244372044,31.58,126.62,126.52,1.6169]
[1719244373352,0.17,126.61,126.52,1.6169]
[1719244373748,31.58,126.62,126.52,1.6169]
[1719244374068,15.15164491,126.65,126.52,1.6169]
[1719244374249,6.97255943,126.65,126.53,0.34]
[1719244374451,31.58,126.66,126.54,1.6169]
[1719244374652,31.58,126.66,126.55,0.34]
[1719244375771,31.58,126.66,126.55,0.17]
[1719244375974,0.34,126.65,126.54,1.6169]
[1719244378462,55.34,126.56,126.47,1.6169]
[1719244378657,55.34,126.56,126.34,40.15716773]
[1719244378658,0.17,126.55,126.34,40.15716773]
[1719244378966,31.58,126.52,126.34,1.36942796]
[1719244379171,0.34,126.51,126.34,1.36942796]
[1719244379372,0.34,126.51,126.33,64.5187055]
[1719244379578,0.34,126.51,126.32,51.26562934]
[1719244379883,55.34,126.48,126.32,31.65]
[1719244380053,31.58,126.44,126.32,31.65]
[1719244380257,0.17,126.43,126.32,31.65]
[1719244380563,31.58,126.48,126.32,31.65]
[1719244380777,0.34,126.47,126.32,31.65]
[1719244381295,31.58,126.46,126.32,31.65]
[1719244381474,0.17,126.45,126.32,31.65]
[1719244381673,31.58,126.46,126.33,0.17]
[1719244381982,31.58,126.46,126.32,31.65]
[1719244382690,7.00525447,126.51,126.34,20.47962517]
[1719244382997,63.224922,126.54,126.33,19.94583084]
[1719244382998,94.804922,126.54,126.33,19.94583084]
[1719244383191,63.224922,126.54,126.34,20.34]
[1719244383575,70.24266108,126.54,126.34,20.34]
[1719244383779,70.24266108,126.54,126.34,87.6267]
[1719244384084,70.24266108,126.54,126.35,20.47460864]
[1719244384286,70.24266108,126.54,126.36,20.34]
[1719244385500,0.17,126.53,126.36,20.34]
[1719244385787,0.17,126.53,126.36,67.84]
[1719244385993,63.224922,126.54,126.36,75.7534]
[1719244386202,31.58,126.54,126.38,74.63007182]
[1719244386378,31.632155,126.57,126.39,40.82588799]
[1719244386577,31.632155,126.57,126.39,88.32588799]
[1719244386772,31.632155,126.57,126.39,87.32884361]
[1719244387594,31.58,126.58,126.4,67.2779]
[1719244387894,63.208324,126.58,126.41,20.34]
[1719244388596,63.208324,126.58,126.41,0.34]
[1719244388885,0.17,126.57,126.41,0.34]
[1719244389275,0.34,126.57,126.41,0.34]
[1719244390189,0.17,126.57,126.41,0.34]
[1719244390596,23.93,126.57,126.4,20.0]
[1719244390792,31.58,126.52,126.38,391.0]
[1719244391581,0.17,126.51,126.38,391.0]
[1719244391879,24.1,126.51,126.36,2.29069596]
[1719244392078,24.1,126.51,126.33,648.1]
[1719244392395,31.58,126.44,126.33,648.1]
[1719244392601,31.58,126.44,126.32,31.65]
[1719244395176,31.58,126.48,126.32,31.65]
[1719244395987,31.58,126.48,126.33,0.34]
[1719244396799,30.58,126.48,126.33,0.34]
[1719244397784,54.34,126.48,126.33,0.17]
[1719244397981,15.7221,126.47,126.33,0.17]
[1719244398198,39.4821,126.47,126.33,0.17]
[1719244398995,39.4821,126.47,126.32,31.65]
[1719244399198,15.7221,126.47,126.32,31.65]
[1719244399418,15.3821,126.47,126.32,31.65]
[1719244400306,15.3821,126.47,126.33,0.34]
[1719244402696,15.3821,126.47,126.32,31.65]
[1719244402697,0.17,126.46,126.32,31.65]
[1719244402894,6.2416,126.45,126.32,31.65]
[1719244403097,0.17,126.44,126.32,31.65]
[1719244403601,0.34,126.44,126.32,31.65]
[1719244404104,6.2416,126.45,126.32,31.65]
[1719244404498,0.17,126.44,126.33,0.17]
[1719244404695,0.17,126.44,126.33,0.34]
[1719244405305,0.17,126.44,126.33,0.17]
[1719244405490,0.34,126.44,126.32,31.65]
[1719244405689,0.17,126.44,126.32,31.65]
[1719244405988,0.17,126.44,126.33,0.17]
[1719244406589,6.2416,126.45,126.33,0.17]
[1719244406797,6.2416,126.45,126.33,0.34]
[1719244407004,6.2416,126.45,126.33,0.17]
[1719244407005,0.17,126.44,126.33,0.17]
[1719244408015,0.34,126.44,126.33,0.17]
[1719244408606,0.17,126.44,126.33,0.34]
[1719244409317,0.34,126.44,126.33,0.17]
[1719244410496,0.17,126.44,126.33,0.17]
[1719244410815,0.17,126.44,126.33,0.34]
[1719244411922,37.8316,126.45,126.33,0.34]
[1719244412415,6.2416,126.45,126.33,0.34]
[1719244412798,6.2416,126.45,126.33,40.59270633]
[1719244413105,6.2416,126.45,126.33,20.34]
[1719244413295,6.2416,126.45,126.33,0.34]
[1719244416418,6.2416,126.45,126.33,19.55519912]
[1719244416838,6.2416,126.45,126.33,0.34]
[1719244419022,6.2416,126.45,126.32,79.15]
[1719244419023,16.174,126.43,126.32,31.65]
[1719244420305,37.6667,126.41,126.32,31.65]
[1719244421210,37.6667,126.41,126.27,1297.5]
[1719244421528,39.2284,126.4,126.27,391.0]
[1719244421704,6.3981,126.39,126.27,391.0]
[1719244421904,0.17,126.38,126.27,391.0]
[1719244422104,0.34,126.38,126.27,391.0]
[1719244422524,0.17,126.38,126.27,391.0]
[1719244422708,6.3981,126.39,126.27,391.0]
[1719244422909,0.34,126.38,126.27,391.0]
[1719244423407,0.17,126.38,126.27,391.0]
[1719244423625,0.17,126.38,126.28,0.17]
[1719244424011,6.3981,126.39,126.28,0.34]
[1719244424621,6.3981,126.39,126.28,0.17]
[1719244425125,6.3981,126.39,126.28,2.44063731]
[1719244425513,6.3981,126.39,126.29,0.17]
[1719244426415,6.3981,126.39,126.28,2.27063731]
[1719244427230,0.34,126.38,126.28,2.27063731]
[1719244429831,16.3775,126.37,126.28,2.27063731]
[1719244430428,19.545032,126.37,126.28,2.27063731]
[1719244433547,19.545032,126.37,126.29,0.34]
[1719244434428,19.545032,126.37,126.28,2.27063731]
[1719244435444,6.1692,126.36,126.28,2.27063731]
[1719244441559,6.1692,126.36,126.29,0.34]
[1719244442265,6.1692,126.36,126.29,0.17]
[1719244442449,6.1692,126.36,126.29,0.34]
[1719244444565,9.96170963,126.39,126.29,47.84]
[1719244444566,3.166884,126.39,126.29,47.84]
[1719244444767,16.1012,126.41,126.33,19.7891]
[1719244445072,15.7223,126.51,126.34,20.34]
[1719244445565,22.65010484,126.51,126.34,20.34]
[1719244446263,39.4823,126.5,126.34,0.34]
[1719244446579,15.7223,126.46,126.34,0.34]
[1719244446776,15.7223,126.46,126.33,0.34]
[1719244447771,6.2728,126.45,126.33,0.17]
[1719244447974,6.4428,126.45,126.33,0.17]
[1719244448156,6.4428,126.45,126.32,0.17]
[1719244448357,6.2728,126.45,126.32,0.17]
[1719244449268,6.2728,126.45,126.32,8.2563]
[1719244449458,6.2728,126.45,126.32,0.34]
[1719244449657,6.2728,126.45,126.32,20.34]
[1719244449862,6.2728,126.45,126.32,75.7563]
[1719244450181,6.2728,126.45,126.34,19.02293782]
[1719244450380,6.2728,126.45,126.35,20.34]
[1719244452157,6.2728,126.45,126.35,67.84]
[1719244452779,6.2728,126.45,126.35,87.6257]
[1719244452963,6.2728,126.45,126.36,7.9137]
[1719244453165,6.2728,126.45,126.37,0.34]
[1719244454986,6.2728,126.45,126.37,2.61063731]
[1719244455886,6.2728,126.45,126.37,30.52373731]
[1719244456057,6.2728,126.45,126.37,89.89343731]
[1719244456257,6.2728,126.45,126.37,97.80663731]
[1719244456463,6.2728,126.45,126.37,22.61063731]
[1719244457984,6.2728,126.45,126.37,30.52373731]
[1719244458172,6.2728,126.45,126.37,22.61063731]
[1719244458761,6.2728,126.45,126.37,78.02343731]
[1719244458961,6.2728,126.45,126.37,70.11063731]
[1719244459690,6.2728,126.45,126.37,2.61063731]
[1719244459883,6.2728,126.45,126.37,2.44063731]
[1719244460086,6.2728,126.45,126.37,2.27063731]
[1719244460783,15.7223,126.46,126.37,1.83921622]
[1719244460784,6.0755,126.41,126.37,1.83921622]
[1719244463361,6.0755,126.41,126.37,1.6552946]
[1719244464171,6.0755,126.41,126.3,391.0]
[1719244464370,15.4273,126.4,126.3,391.2993756]
[1719244464879,15.1489,126.38,126.3,391.2993756]
[1719244465083,6.0637,126.37,126.3,0.2993756]
[1719244467677,6.0637,126.37,126.31,0.34]
[1719244474691,6.0637,126.37,126.3,0.2993756]
[1719244476714,6.0637,126.37,126.31,0.17]
[1719244477513,6.0637,126.37,126.31,0.34]
[1719244478707,6.0637,126.37,126.31,0.17]
[1719244479096,6.0637,126.37,126.3,0.2993756]
[1719244482219,6.0637,126.37,126.31,0.17]
[1719244484728,6.0637,126.37,126.3,0.2993756]
[1719244484930,6.0637,126.37,126.31,0.17]
[1719244485431,6.0637,126.37,126.31,0.34]
[1719244487016,6.0637,126.37,126.31,0.17]
[1719244487500,6.0637,126.37,126.3,0.2993756]
[1719244488902,6.0637,126.37,126.31,0.17]
[1719244490025,6.0637,126.37,126.3,0.2993756]
[1719244493228,6.0637,126.37,126.31,0.17]
[1719244494336,6.0637,126.37,126.31,0.34]
[1719244495330,6.0637,126.37,126.31,0.6393756]
[1719244498126,6.0637,126.37,126.31,0.2993756]
[1719244499232,6.0637,126.37,126.28,31.65]
[1719244499233,15.1334,126.36,126.28,31.65]
[1719244500341,6.0575,126.35,126.28,31.65]
[1719244501529,6.0575,126.35,126.29,0.17]
[1719244502661,6.0575,126.35,126.29,0.34]
[1719244504243,6.0575,126.35,126.29,0.17]
[1719244504433,6.0575,126.35,126.29,0.34]
[1719244504831,6.0575,126.35,126.29,0.17]
[1719244505040,6.0575,126.35,126.28,31.65]
[1719244505238,6.9386266,126.39,126.23,391.0]
[1719244505239,6.1812,126.33,126.23,391.0]
[1719244505445,16.6486,126.32,126.23,391.0]
[1719244505745,6.1812,126.31,126.23,391.0]
[1719244506346,6.0454,126.29,126.23,391.0]
[1719244507044,15.0058,126.28,126.22,0.8683477]
[1719244507247,6.088,126.27,126.15,3.0295456]
[1719244507449,31.58,126.3,126.15,3.0295456]
[1719244507450,6.088,126.25,126.15,3.0295456]
[1719244507625,15.0058,126.24,126.15,3.0295456]
[1719244508029,6.088,126.23,126.15,3.0295456]
[1719244513466,6.088,126.23,126.16,0.34]
[1719244514651,6.088,126.23,126.16,0.17]
[1719244514960,6.088,126.23,126.15,3.0295456]
[1719244515352,21.8374,126.21,126.11,4.30129121]
[1719244515670,31.6901,126.27,126.11,4.30129121]
[1719244515671,15.8334,126.17,126.11,4.30129121]
[1719244515869,15.8334,126.17,126.11,2.80129121]
[1719244516070,15.8334,126.17,126.11,1.30129121]
[1719244516980,6.0717,126.16,126.11,1.30129121]
[1719244517368,21.4879,126.15,126.06,6.22411871]
[1719244521373,21.4879,126.15,126.08,0.17]
[1719244522171,6.2368,126.12,126.06,6.22411871]
[1719244522979,0.17,126.11,126.06,6.22411871]
[1719244523294,31.58,126.08,126.01,4.03864204]
[1719244524181,21.2362,126.06,126.01,4.03864204]
[1719244524379,0.34,126.05,125.97,0.8683477]
[1719244524602,21.2362,126.06,125.97,0.8683477]
[1719244525299,6.2761,126.03,125.97,0.8683477]
[1719244525482,6.2761,126.03,125.96,3.82116634]
[1719244526183,0.34,126.02,125.96,3.82116634]
[1719244526596,31.58,126.01,125.96,3.82116634]
[1719244527297,22.3019,125.99,125.94,0.1565052]
[1719244529686,22.3019,125.99,125.91,7.96852041]
[1719244530007,31.58,125.98,125.91,7.96852041]
[1719244530389,22.3019,125.99,125.91,7.96852041]
[1719244534397,0.17,125.98,125.91,7.96852041]
[1719244534621,0.34,125.98,125.91,7.96852041]
[1719244534787,22.3019,125.99,125.91,7.96852041]
[1719244536531,31.75,125.98,125.91,7.96852041]
[1719244536823,21.7058,125.97,125.87,7.20239633]
[1719244537901,15.2924,125.95,125.87,7.20239633]
[1719244538109,6.4876,125.94,125.82,5.67554505]
[1719244538318,6.3176,125.89,125.82,5.67554505]
[1719244539605,0.34,125.88,125.8,0.53898151]
[1719244539915,31.58,125.86,125.8,0.53898151]
[1719244540120,6.3176,125.89,125.8,0.53898151]
[1719244540324,31.58,125.87,125.8,0.53898151]
[1719244541422,0.34,125.86,125.77,6.58678333]
[1719244541829,31.58,125.83,125.77,6.58678333]
[1719244542012,16.4788,125.85,125.77,6.58678333]
[1719244542414,8.26090316,125.87,125.77,6.58678333]
[1719244542811,6.3176,125.89,125.77,6.58678333]
[1719244543219,6.3176,125.89,125.78,0.17]
[1719244543726,31.58,125.94,125.79,10.0]
[1719244543909,6.1514,125.96,125.8,40.50405222]
[1719244544109,31.58,125.93,125.8,0.17]
[1719244545136,8.259247,125.95,125.8,0.17]
[1719244545427,8.259247,125.95,125.79,47.86]
[1719244545643,8.259247,125.95,125.8,46.76072288]
[1719244545835,8.259247,125.95,125.81,0.17]
[1719244548236,8.259247,125.95,125.81,39.7125188]
[1719244548537,37.7314,125.96,125.82,0.17]
[1719244548734,45.98409025,125.96,125.81,0.17]
[1719244548935,45.98409025,125.96,125.81,28.58311554]
[1719244549121,37.7314,125.96,125.82,0.17]
[1719244549321,37.7314,125.96,125.81,27.9882]
[1719244549516,37.7314,125.96,125.82,0.17]
[1719244549716,37.7314,125.96,125.81,0.17]
[1719244549921,55.35,125.92,125.78,15.15]
[1719244550235,6.1514,125.96,125.78,15.15]
[1719244550236,31.58,125.95,125.78,15.15]
[1719244551036,31.58,125.95,125.79,7.9493]
[1719244551336,31.58,125.95,125.78,15.15]
[1719244551915,31.58,125.95,125.78,62.84]
[1719244552121,6.1514,125.96,125.79,75.9794]
[1719244552321,6.1514,125.96,125.8,20.09998481]
[1719244552523,6.1514,125.96,125.81,0.34]
[1719244552714,6.1514,125.96,125.82,0.17]
[1719244552927,6.1514,125.96,125.79,0.34]
[1719244553255,6.1514,125.96,125.79,8.2896]
[1719244553435,6.1514,125.96,125.79,0.17]
[1719244553837,6.1514,125.96,125.8,66.53121801]
[1719244554138,6.1514,125.96,125.81,0.17]
[1719244554340,6.1514,125.96,125.78,82.52877789]
[1719244554341,29.9214,125.96,125.78,15.15]
[1719244554737,29.9214,125.96,125.79,0.17]
[1719244555048,29.9214,125.96,125.78,15.15]
[1719244555245,0.34,125.95,125.78,15.15]
[1719244555433,0.17,125.95,125.78,15.15]
[1719244555632,0.34,125.95,125.78,15.15]
[1719244556442,0.34,125.95,125.79,0.17]
[1719244557041,6.1514,125.96,125.79,0.17]
[1719244557352,6.1514,125.96,125.81,16.031]
[1719244557549,6.1514,125.96,125.82,0.34]
[1719244557749,6.1514,125.96,125.78,15.15]
[1719244557950,7.95604071,125.96,125.79,22.4982]
[1719244558155,6.1514,125.96,125.79,22.4982]
[1719244558955,6.1514,125.96,125.8,20.47009666]
[1719244559142,6.1514,125.96,125.81,0.17]
[1719244559554,6.1514,125.96,125.81,94.94873206]
[1719244559759,6.80849072,125.99,125.83,70.787]
[1719244559952,15.1225,126.01,125.86,74.65243633]
[1719244560262,30.3469,126.04,125.87,0.34]
[1719244560551,31.774621,126.02,125.88,21.8485]
[1719244560732,14.812455,126.04,125.89,0.34]
[1719244560942,31.58,126.12,125.89,91.1229]
[1719244560943,38.0748,126.08,125.89,91.1229]
[1719244561149,59.9233,126.08,125.9,20.48027576]
[1719244561350,59.9233,126.08,125.91,20.34]
[1719244561747,45.003043,126.08,125.92,42.16338564]
[1719244561942,6.4948,126.08,125.93,75.9706]
[1719244562152,6.4948,126.08,125.93,68.03]
[1719244562458,8.23663486,126.11,125.93,68.03]
[1719244562758,8.23663486,126.11,125.93,20.34]
[1719244563065,8.23663486,126.11,125.94,47.69]
[1719244563374,6.89976958,126.12,125.99,15.0039]
[1719244563556,7.0040091,126.13,126.0,0.34]
[1719244563874,7.0040091,126.13,126.01,0.17]
[1719244564157,7.0040091,126.13,126.0,0.17]
[1719244564356,7.0040091,126.13,126.0,0.34]
[1719244564766,0.8597091,126.13,126.0,0.34]
[1719244564966,0.8597091,126.13,126.03,16.1028]
[1719244565144,0.8597091,126.13,126.04,0.34]
[1719244568158,0.8597091,126.13,126.05,19.27984708]
[1719244568361,8.26007458,126.23,126.07,19.63962281]
[1719244568594,15.2352,126.25,126.07,19.63962281]
[1719244568595,15.2352,126.25,126.08,16.7795]
[1719244568895,15.2352,126.25,126.09,20.17]
[1719244569087,15.2352,126.25,126.1,0.17]
[1719244569285,40.69814281,126.26,126.11,7.9295]
[1719244569483,39.29479154,126.26,126.12,0.34]
[1719244569670,0.8597091,126.26,126.12,20.34]
[1719244570184,0.8597091,126.26,126.12,0.34]
[1719244570185,0.1188787,126.26,126.12,0.34]
[1719244571003,0.1188787,126.26,126.1,19.64790384]
[1719244571004,0.1188787,126.26,126.13,6.4031]
[1719244571203,0.1188787,126.26,126.14,0.34]
[1719244571778,0.1188787,126.26,126.14,20.34]
[1719244572513,0.1188787,126.26,126.13,25.40312141]
[1719244572812,0.1188787,126.26,126.13,6.4031]
[1719244573118,31.66,126.25,126.13,6.4031]
[1719244573436,31.66,126.21,126.08,16.6095]
[1719244573876,0.34,126.2,126.08,16.6095]
[1719244574077,0.17,126.2,126.08,16.6095]
[1719244574473,31.66,126.21,126.08,16.6095]
[1719244575004,6.262,126.24,126.08,16.6095]
[1719244576018,6.262,126.24,126.09,0.17]
[1719244576893,6.262,126.24,126.09,20.34]
[1719244577709,6.262,126.24,126.09,68.03]
[1719244577922,0.1188787,126.26,126.1,20.34704183]
[1719244578303,0.1188787,126.26,126.1,47.86]
[1719244578505,0.1188787,126.26,126.13,82.16922709]
[1719244578911,0.1188787,126.26,126.13,74.24152709]
[1719244579820,0.1188787,126.26,126.14,55.6176]
[1719244580122,0.1188787,126.26,126.15,19.41356575]
[1719244580308,0.1188787,126.26,126.16,0.17]
[1719244581016,0.1188787,126.26,126.15,0.34]
[1719244581525,31.66,126.25,126.13,6.2968]
[1719244582099,0.1188787,126.26,126.13,6.2968]
[1719244582399,0.1188787,126.26,126.14,18.64071329]
[1719244582921,0.1188787,126.26,126.15,0.17]
[1719244583121,0.1188787,126.26,126.15,0.34]
[1719244583328,0.1188787,126.26,126.15,20.34]
[1719244583545,0.1188787,126.26,126.13,21.3468]
[1719244584120,31.7788787,126.26,126.13,21.3468]
[1719244585122,0.1188787,126.26,126.13,21.3468]
[1719244585320,0.1188787,126.26,126.13,48.35208378]
[1719244585555,0.1188787,126.26,126.13,40.42388378]
[1719244585721,0.1188787,126.26,126.13,88.11388378]
[1719244585927,0.1188787,126.26,126.16,15.7018]
[1719244586240,0.1188787,126.26,126.17,0.17]
[1719244586557,0.1188787,126.26,126.17,0.34]
[1719244587859,0.1188787,126.26,126.17,20.34]
[1719244588342,0.1188787,126.26,126.19,27.7347]
[1719244588560,0.1188787,126.26,126.2,20.34]
[1719244588926,0.1188787,126.26,126.2,26.9258]
[1719244589448,0.1188787,126.26,126.2,6.9258]
[1719244589653,0.1188787,126.26,126.2,0.34]
[1719244590142,0.1188787,126.26,126.21,0.17]
[1719244590455,0.1188787,126.26,126.19,38.87800566]
[1719244590645,0.1188787,126.26,126.2,6.4006]
[1719244590858,0.1188787,126.26,126.21,28.2628]
[1719244591032,0.1188787,126.26,126.21,20.34]
[1719244591424,0.1188787,126.26,126.21,68.03]
[1719244591629,0.1188787,126.26,126.21,20.34]
[1719244592733,0.1188787,126.26,126.2,6.4006]
[1719244595035,0.1188787,126.26,126.21,0.34]
[1719244595546,0.1188787,126.26,126.21,0.17]
[1719244596448,0.1188787,126.26,126.18,6.5858]